[Event "Titled Tuesday Blitz February 14 Late 2023"]
[White "CheckBits"]
[Black "Alvarez Calzadilla, Jose Avelino"]
[BlackFideId "3526151"]
[WhiteElo "2468"]
[BlackElo "2386"]
[Result "0-1"]
[Round "05"]
[TimeControl "180+2"]
[Date "2023.02.14"]
[WhiteClock "0:00:04"]
[BlackClock "0:00:45"]

1. d4 {[%clk 0:02:57]}  Nf6 {[%clk 0:02:59]} 2. Bf4 {[%clk 0:02:56]}  d6 {[%clk 0:02:55]} 3. Nf3 {[%clk 0:02:53]}  Nbd7 {[%clk 0:02:54]} 4. h3 {[%clk 0:02:51]}  c6 {[%clk 0:02:54]} 5. Nbd2 {[%clk 0:02:48]}  Qc7 {[%clk 0:02:53]} 6. e4 {[%clk 0:02:47]}  e5 {[%clk 0:02:53]} 7. Bh2 {[%clk 0:02:42]}  Be7 {[%clk 0:02:51]} 8. a4 {[%clk 0:02:37]}  O-O {[%clk 0:02:50]} 9. dxe5 {[%clk 0:02:34]}  dxe5 {[%clk 0:02:47]} 10. Bc4 {[%clk 0:02:29]}  h6 {[%clk 0:02:39]} 11. O-O {[%clk 0:02:29]}  Re8 {[%clk 0:02:38]} 12. Nh4 {[%clk 0:02:20]}  Bf8 {[%clk 0:02:28]} 13. Qf3 {[%clk 0:02:13]}  Nb6 {[%clk 0:02:25]} 14. Bb3 {[%clk 0:02:10]}  Be6 {[%clk 0:02:24]} 15. Nf5 {[%clk 0:02:02]}  Bxb3 {[%clk 0:02:19]} 16. Nxb3 {[%clk 0:02:01]}  Re6 {[%clk 0:02:11]} 17. a5 {[%clk 0:01:55]}  Nc4 {[%clk 0:02:10]} 18. a6 {[%clk 0:01:51]}  b6 {[%clk 0:02:05]} 19. Qe2 {[%clk 0:01:29]}  Nd6 {[%clk 0:02:03]} 20. f3 {[%clk 0:01:18]}  Nxf5 {[%clk 0:02:01]} 21. exf5 {[%clk 0:01:18]}  Ree8 {[%clk 0:02:00]} 22. Rfe1 {[%clk 0:01:12]}  Qd7 {[%clk 0:01:51]} 23. g4 {[%clk 0:01:07]}  e4 {[%clk 0:01:52]} 24. Rad1 {[%clk 0:01:03]}  Qc8 {[%clk 0:01:49]} 25. Qg2 {[%clk 0:00:57]}  e3 {[%clk 0:01:30]} 26. Rd3 {[%clk 0:00:29]}  Nd5 {[%clk 0:01:18]} 27. Nd4 {[%clk 0:00:25]}  Bc5 {[%clk 0:01:11]} 28. Kh1 {[%clk 0:00:11]}  Nb4 {[%clk 0:00:55]} 29. Rb3 {[%clk 0:00:04]}  Qxa6 {[%clk 0:00:45]} 0-1


[Site "https://www.chess.com"]

[Event "Titled Tuesday Blitz February 14 Late 2023"]
[White "Poliakova, Varvara"]
[Black "Dinu, Dumitru-Daniel"]
[WhiteFideId "13518313"]
[BlackFideId "1208403"]
[WhiteElo "2010"]
[BlackElo "2203"]
[Result "1-0"]
[Round "05"]
[TimeControl "180+2"]
[Date "2023.02.14"]
[WhiteClock "0:00:29"]
[BlackClock "0:00:02"]

1. e4 {[%clk 0:02:49]}  c5 {[%clk 0:02:55]} 2. Nf3 {[%clk 0:02:48]}  e6 {[%clk 0:02:55]} 3. d4 {[%clk 0:02:47]}  cxd4 {[%clk 0:02:55]} 4. Nxd4 {[%clk 0:02:48]}  Nc6 {[%clk 0:02:55]} 5. Nc3 {[%clk 0:02:46]}  Nf6 {[%clk 0:02:55]} 6. Ndb5 {[%clk 0:02:44]}  Bb4 {[%clk 0:02:54]} 7. a3 {[%clk 0:02:44]}  Bxc3+ {[%clk 0:02:54]} 8. Nxc3 {[%clk 0:02:45]}  d5 {[%clk 0:02:55]} 9. exd5 {[%clk 0:02:44]}  exd5 {[%clk 0:02:55]} 10. Qe2+ {[%clk 0:02:45]}  Be6 {[%clk 0:02:54]} 11. Bg5 {[%clk 0:02:44]}  O-O {[%clk 0:02:53]} 12. O-O-O {[%clk 0:02:42]}  Qc7 {[%clk 0:02:21]} 13. Bxf6 {[%clk 0:02:37]}  Qf4+ {[%clk 0:02:20]} 14. Qd2 {[%clk 0:02:34]}  Qxf6 {[%clk 0:02:20]} 15. Bd3 {[%clk 0:02:30]}  Rac8 {[%clk 0:02:02]} 16. f4 {[%clk 0:02:27]}  Na5 {[%clk 0:01:58]} 17. f5 {[%clk 0:02:20]}  d4 {[%clk 0:01:55]} 18. Qe1 {[%clk 0:01:40]}  dxc3 {[%clk 0:01:15]} 19. fxe6 {[%clk 0:01:39]}  Qxe6 {[%clk 0:01:04]} 20. Qxe6 {[%clk 0:01:32]}  fxe6 {[%clk 0:01:03]} 21. b4 {[%clk 0:01:21]}  Nc4 {[%clk 0:00:38]} 22. Rhe1 {[%clk 0:01:08]}  Nb2 {[%clk 0:00:32]} 23. Bxh7+ {[%clk 0:00:57]}  Kxh7 {[%clk 0:00:29]} 24. Rd7 {[%clk 0:00:57]}  Rf6 {[%clk 0:00:20]} 25. Rxb7 {[%clk 0:00:55]}  Rcf8 {[%clk 0:00:19]} 26. Kb1 {[%clk 0:00:53]}  Rf1 {[%clk 0:00:17]} 27. Rxf1 {[%clk 0:00:53]}  Rxf1+ {[%clk 0:00:17]} 28. Ka2 {[%clk 0:00:54]}  Nd3 {[%clk 0:00:16]} 29. Rxa7 {[%clk 0:00:47]}  Nc1+ {[%clk 0:00:16]} 30. Kb1 {[%clk 0:00:45]}  Nb3+ {[%clk 0:00:12]} 31. Ka2 {[%clk 0:00:45]}  Nc1+ {[%clk 0:00:04]} 32. Kb1 {[%clk 0:00:45]}  Nd3+ {[%clk 0:00:03]} 33. Ka2 {[%clk 0:00:45]}  Rf2 {[%clk 0:00:04]} 34. Kb3 {[%clk 0:00:43]}  Nc1+ {[%clk 0:00:03]} 35. Kxc3 {[%clk 0:00:42]}  Ne2+ {[%clk 0:00:03]} 36. Kc4 {[%clk 0:00:36]}  Rxg2 {[%clk 0:00:02]} 37. b5 {[%clk 0:00:35]}  Rg4+ {[%clk 0:00:02]} 38. Kc5 {[%clk 0:00:34]}  Nf4 {[%clk 0:00:01]} 39. b6 {[%clk 0:00:30]}  Rg5+ {[%clk 0:00:02]} 40. Kc6 {[%clk 0:00:29]} 1-0


[Site "https://www.chess.com"]

[Event "Titled Tuesday Blitz February 14 Late 2023"]
[White "Vovk, Orest"]
[Black "Todev, Simeon"]
[WhiteFideId "14113490"]
[BlackFideId "2925133"]
[WhiteElo "2315"]
[BlackElo "2033"]
[Result "1-0"]
[Round "05"]
[TimeControl "180+2"]
[Date "2023.02.14"]
[WhiteClock "0:00:07"]
[BlackClock "0:00:04"]

1. h4 {[%clk 0:02:56]}  e5 {[%clk 0:02:57]} 2. h5 {[%clk 0:02:57]}  d5 {[%clk 0:02:51]} 3. h6 {[%clk 0:02:57]}  g6 {[%clk 0:02:50]} 4. d4 {[%clk 0:02:57]}  exd4 {[%clk 0:02:50]} 5. Qxd4 {[%clk 0:02:57]}  Nf6 {[%clk 0:02:50]} 6. Bg5 {[%clk 0:02:56]}  Be7 {[%clk 0:02:51]} 7. Nc3 {[%clk 0:02:56]}  c5 {[%clk 0:02:41]} 8. Qh4 {[%clk 0:02:54]}  Be6 {[%clk 0:02:40]} 9. O-O-O {[%clk 0:02:53]}  Nc6 {[%clk 0:02:34]} 10. Nf3 {[%clk 0:02:43]}  O-O {[%clk 0:02:08]} 11. e4 {[%clk 0:02:39]}  d4 {[%clk 0:02:05]} 12. e5 {[%clk 0:02:38]}  Nd5 {[%clk 0:02:04]} 13. Nxd5 {[%clk 0:02:34]}  Bxd5 {[%clk 0:01:54]} 14. Bxe7 {[%clk 0:02:32]}  Nxe7 {[%clk 0:01:50]} 15. Qf4 {[%clk 0:01:52]}  Nc6 {[%clk 0:01:10]} 16. Bb5 {[%clk 0:01:16]}  Nb4 {[%clk 0:00:49]} 17. a3 {[%clk 0:00:59]}  Na2+ {[%clk 0:00:46]} 18. Kb1 {[%clk 0:00:48]}  a6 {[%clk 0:00:39]} 19. c4 {[%clk 0:00:39]}  dxc3 {[%clk 0:00:24]} 20. Rxd5 {[%clk 0:00:32]}  Qxd5 {[%clk 0:00:21]} 21. Qf6 {[%clk 0:00:28]}  c2+ {[%clk 0:00:07]} 22. Ka1 {[%clk 0:00:21]}  Qd1+ {[%clk 0:00:05]} 23. Rxd1 {[%clk 0:00:07]}  cxd1=Q+ {[%clk 0:00:05]} 24. Kxa2 {[%clk 0:00:08]}  Qd5+ {[%clk 0:00:04]} 25. b3 {[%clk 0:00:07]} 1-0


[Site "https://www.chess.com"]

[Event "Titled Tuesday Blitz February 14 Late 2023"]
[White "Al-Tarboush, Ward"]
[Black "Lopez Idarraga, Daniel Eduardo"]
[WhiteFideId "7601450"]
[BlackFideId "4405501"]
[WhiteElo "2256"]
[BlackElo "2009"]
[Result "0-1"]
[Round "05"]
[TimeControl "180+2"]
[Date "2023.02.14"]
[WhiteClock "0:00:05"]
[BlackClock "0:00:10"]

1. e4 {[%clk 0:02:53]}  Nf6 {[%clk 0:02:25]} 2. e5 {[%clk 0:02:53]}  Nd5 {[%clk 0:02:23]} 3. d4 {[%clk 0:02:52]}  d6 {[%clk 0:02:23]} 4. Nf3 {[%clk 0:02:52]}  Bg4 {[%clk 0:02:21]} 5. Be2 {[%clk 0:02:52]}  e6 {[%clk 0:02:14]} 6. exd6 {[%clk 0:02:51]}  cxd6 {[%clk 0:02:12]} 7. c4 {[%clk 0:02:51]}  Nb6 {[%clk 0:02:12]} 8. Nc3 {[%clk 0:02:51]}  Be7 {[%clk 0:02:12]} 9. O-O {[%clk 0:02:51]}  O-O {[%clk 0:02:13]} 10. Be3 {[%clk 0:02:50]}  Nc6 {[%clk 0:02:10]} 11. b3 {[%clk 0:02:50]}  d5 {[%clk 0:02:06]} 12. c5 {[%clk 0:02:49]}  Nd7 {[%clk 0:02:06]} 13. h3 {[%clk 0:02:48]}  Bh5 {[%clk 0:02:04]} 14. Rb1 {[%clk 0:02:39]}  a5 {[%clk 0:02:03]} 15. Nb5 {[%clk 0:02:38]}  b6 {[%clk 0:01:59]} 16. Rc1 {[%clk 0:02:32]}  bxc5 {[%clk 0:01:58]} 17. dxc5 {[%clk 0:02:33]}  Rc8 {[%clk 0:01:53]} 18. Qd2 {[%clk 0:02:24]}  Bxf3 {[%clk 0:01:06]} 19. Bxf3 {[%clk 0:02:24]}  Nce5 {[%clk 0:01:06]} 20. c6 {[%clk 0:02:24]}  Nxf3+ {[%clk 0:01:01]} 21. gxf3 {[%clk 0:02:24]}  Ne5 {[%clk 0:01:02]} 22. Nd4 {[%clk 0:02:07]}  Ba3 {[%clk 0:00:58]} 23. Rc2 {[%clk 0:02:06]}  Qh4 {[%clk 0:00:57]} 24. Kg2 {[%clk 0:02:04]}  Ng6 {[%clk 0:00:54]} 25. Qxa5 {[%clk 0:01:45]}  Bd6 {[%clk 0:00:52]} 26. Nb5 {[%clk 0:01:45]}  Bf4 {[%clk 0:00:48]} 27. Rg1 {[%clk 0:01:19]}  Qh5 {[%clk 0:00:45]} 28. c7 {[%clk 0:01:02]}  d4 {[%clk 0:00:31]} 29. Bxf4 {[%clk 0:00:46]}  Nxf4+ {[%clk 0:00:29]} 30. Kf1 {[%clk 0:00:47]}  Qf5 {[%clk 0:00:21]} 31. Qd2 {[%clk 0:00:15]}  Qxb5+ {[%clk 0:00:20]} 32. Rc4 {[%clk 0:00:15]}  e5 {[%clk 0:00:16]} 33. Rg5 {[%clk 0:00:11]}  Rxc7 {[%clk 0:00:15]} 34. Qc1 {[%clk 0:00:11]}  Rfc8 {[%clk 0:00:12]} 35. h4 {[%clk 0:00:06]}  Rxc4 {[%clk 0:00:11]} 36. bxc4 {[%clk 0:00:06]}  Qxc4+ {[%clk 0:00:12]} 37. Qxc4 {[%clk 0:00:06]}  Rxc4 {[%clk 0:00:13]} 38. Kg1 {[%clk 0:00:07]}  Nh3+ {[%clk 0:00:12]} 39. Kg2 {[%clk 0:00:06]}  Nxg5 {[%clk 0:00:13]} 40. hxg5 {[%clk 0:00:07]}  Ra4 {[%clk 0:00:12]} 41. f4 {[%clk 0:00:06]}  Rxa2 {[%clk 0:00:13]} 42. f5 {[%clk 0:00:06]}  Re2 {[%clk 0:00:13]} 43. f6 {[%clk 0:00:05]}  d3 {[%clk 0:00:14]} 44. Kf3 {[%clk 0:00:05]}  e4+ {[%clk 0:00:13]} 45. Kf4 {[%clk 0:00:05]}  d2 {[%clk 0:00:12]} 46. g6 {[%clk 0:00:06]}  d1=Q {[%clk 0:00:12]} 47. Ke5 {[%clk 0:00:06]}  Rxf2 {[%clk 0:00:11]} 48. gxh7+ {[%clk 0:00:05]}  Kxh7 {[%clk 0:00:10]} 49. fxg7 {[%clk 0:00:05]}  Kxg7 {[%clk 0:00:10]} 50. Kxe4 {[%clk 0:00:05]}  Qe1+ {[%clk 0:00:09]} 51. Kd3 {[%clk 0:00:05]}  Rd2+ {[%clk 0:00:10]} 0-1


[Site "https://www.chess.com"]

[Event "Titled Tuesday Blitz February 14 Late 2023"]
[White "Nefedov, Sergey"]
[Black "Hoffmann, Asa"]
[WhiteFideId "24113417"]
[BlackFideId "2001470"]
[WhiteElo "2300"]
[BlackElo "2185"]
[Result "1-0"]
[Round "05"]
[TimeControl "180+2"]
[Date "2023.02.14"]
[WhiteClock "0:00:56"]
[BlackClock "0:00:50"]

1. d4 {[%clk 0:03:00]}  Nf6 {[%clk 0:02:59]} 2. Nf3 {[%clk 0:03:01]}  d6 {[%clk 0:02:59]} 3. c4 {[%clk 0:02:59]}  c6 {[%clk 0:02:58]} 4. Nc3 {[%clk 0:02:59]}  Bf5 {[%clk 0:02:58]} 5. Bg5 {[%clk 0:02:58]}  Nbd7 {[%clk 0:02:57]} 6. Nh4 {[%clk 0:02:52]}  Ne4 {[%clk 0:02:48]} 7. Bxe7 {[%clk 0:02:37]}  Bxe7 {[%clk 0:02:43]} 8. Nxf5 {[%clk 0:02:37]}  Nxc3 {[%clk 0:02:42]} 9. bxc3 {[%clk 0:02:33]}  O-O {[%clk 0:02:38]} 10. e3 {[%clk 0:02:28]}  Re8 {[%clk 0:02:31]} 11. Nxe7+ {[%clk 0:02:20]}  Qxe7 {[%clk 0:02:30]} 12. Bd3 {[%clk 0:02:21]}  Qh4 {[%clk 0:02:26]} 13. O-O {[%clk 0:02:19]}  Nf6 {[%clk 0:02:25]} 14. Qf3 {[%clk 0:02:17]}  d5 {[%clk 0:02:17]} 15. cxd5 {[%clk 0:02:14]}  cxd5 {[%clk 0:02:16]} 16. Rab1 {[%clk 0:02:12]}  b6 {[%clk 0:02:16]} 17. c4 {[%clk 0:02:11]}  Ne4 {[%clk 0:02:12]} 18. Bxe4 {[%clk 0:02:02]}  dxe4 {[%clk 0:02:06]} 19. Qg3 {[%clk 0:02:02]}  Qe7 {[%clk 0:02:04]} 20. Rfc1 {[%clk 0:01:59]}  Rac8 {[%clk 0:01:59]} 21. Rc3 {[%clk 0:01:50]}  Rc7 {[%clk 0:01:51]} 22. Qf4 {[%clk 0:01:31]}  Rec8 {[%clk 0:01:49]} 23. Qf5 {[%clk 0:01:28]}  g6 {[%clk 0:01:40]} 24. Qd5 {[%clk 0:01:25]}  Rd7 {[%clk 0:01:32]} 25. Qb5 {[%clk 0:01:23]}  Rdc7 {[%clk 0:01:30]} 26. a4 {[%clk 0:01:23]}  h5 {[%clk 0:01:27]} 27. Rbc1 {[%clk 0:01:20]}  h4 {[%clk 0:01:24]} 28. h3 {[%clk 0:01:19]}  f5 {[%clk 0:01:13]} 29. a5 {[%clk 0:01:18]}  Qf6 {[%clk 0:01:09]} 30. axb6 {[%clk 0:01:17]}  axb6 {[%clk 0:01:09]} 31. c5 {[%clk 0:01:16]}  f4 {[%clk 0:01:06]} 32. Qb3+ {[%clk 0:01:00]}  Kg7 {[%clk 0:00:59]} 33. cxb6 {[%clk 0:00:59]}  Rxc3 {[%clk 0:00:56]} 34. Rxc3 {[%clk 0:00:59]}  Rxc3 {[%clk 0:00:53]} 35. Qxc3 {[%clk 0:01:00]}  fxe3 {[%clk 0:00:52]} 36. Qc7+ {[%clk 0:00:55]}  Kh6 {[%clk 0:00:50]} 37. fxe3 {[%clk 0:00:56]} 1-0


[Site "https://www.chess.com"]

[Event "Titled Tuesday Blitz February 14 Late 2023"]
[White "Ibadov, Dashgyn"]
[Black "Szente Varga, Fruzsina"]
[WhiteFideId "24107514"]
[BlackFideId "712264"]
[WhiteElo "2391"]
[BlackElo "2075"]
[Result "1-0"]
[Round "05"]
[TimeControl "180+2"]
[Date "2023.02.14"]
[WhiteClock "0:00:53"]
[BlackClock "0:00:14"]

1. e4 {[%clk 0:03:00]}  Nf6 {[%clk 0:03:00]} 2. e5 {[%clk 0:03:00]}  Nd5 {[%clk 0:03:01]} 3. d4 {[%clk 0:03:00]}  d6 {[%clk 0:03:01]} 4. c4 {[%clk 0:03:01]}  Nb6 {[%clk 0:03:01]} 5. f4 {[%clk 0:03:01]}  g6 {[%clk 0:03:01]} 6. Nc3 {[%clk 0:03:00]}  Bg7 {[%clk 0:03:02]} 7. Be3 {[%clk 0:03:00]}  O-O {[%clk 0:03:01]} 8. Nf3 {[%clk 0:02:58]}  dxe5 {[%clk 0:03:01]} 9. fxe5 {[%clk 0:02:57]}  Bg4 {[%clk 0:03:01]} 10. Be2 {[%clk 0:02:44]}  Nc6 {[%clk 0:02:59]} 11. O-O {[%clk 0:02:42]}  e6 {[%clk 0:02:56]} 12. Qd2 {[%clk 0:02:36]}  Qd7 {[%clk 0:02:56]} 13. Rad1 {[%clk 0:02:35]}  Rad8 {[%clk 0:02:42]} 14. b3 {[%clk 0:02:35]}  Bxf3 {[%clk 0:02:37]} 15. Bxf3 {[%clk 0:02:33]}  Nc8 {[%clk 0:02:20]} 16. Ne4 {[%clk 0:02:28]}  Kh8 {[%clk 0:02:11]} 17. Nf6 {[%clk 0:02:20]}  Qe7 {[%clk 0:02:04]} 18. Bxc6 {[%clk 0:02:17]}  bxc6 {[%clk 0:02:02]} 19. Bh6 {[%clk 0:02:16]}  c5 {[%clk 0:01:59]} 20. Qg5 {[%clk 0:02:04]}  Rxd4 {[%clk 0:01:14]} 21. Rxd4 {[%clk 0:02:01]}  cxd4 {[%clk 0:01:15]} 22. Qh4 {[%clk 0:01:59]}  Rg8 {[%clk 0:01:16]} 23. Bxg7+ {[%clk 0:01:45]}  Rxg7 {[%clk 0:01:15]} 24. Qxd4 {[%clk 0:01:45]}  Nb6 {[%clk 0:01:09]} 25. Rd1 {[%clk 0:01:44]}  Rg8 {[%clk 0:00:46]} 26. Nxg8 {[%clk 0:01:44]}  Kxg8 {[%clk 0:00:47]} 27. Qd8+ {[%clk 0:01:44]}  Qf8 {[%clk 0:00:47]} 28. Qxc7 {[%clk 0:01:39]}  Kg7 {[%clk 0:00:45]} 29. h3 {[%clk 0:01:33]}  Qa3 {[%clk 0:00:34]} 30. Qd8 {[%clk 0:01:29]}  Qc5+ {[%clk 0:00:33]} 31. Qd4 {[%clk 0:01:29]}  Qa3 {[%clk 0:00:33]} 32. Rf1 {[%clk 0:01:26]}  Qxa2 {[%clk 0:00:20]} 33. Qf4 {[%clk 0:01:25]}  Qxb3 {[%clk 0:00:18]} 34. Qxf7+ {[%clk 0:01:24]}  Kh6 {[%clk 0:00:19]} 35. Qf8+ {[%clk 0:01:25]}  Kh5 {[%clk 0:00:19]} 36. c5 {[%clk 0:01:01]}  Nd5 {[%clk 0:00:18]} 37. Qf3+ {[%clk 0:00:59]}  Qxf3 {[%clk 0:00:15]} 38. Rxf3 {[%clk 0:01:00]}  Kg5 {[%clk 0:00:15]} 39. c6 {[%clk 0:01:00]}  a5 {[%clk 0:00:15]} 40. Rf7 {[%clk 0:00:57]}  a4 {[%clk 0:00:13]} 41. c7 {[%clk 0:00:57]}  Nb6 {[%clk 0:00:13]} 42. Rf8 {[%clk 0:00:54]}  a3 {[%clk 0:00:14]} 43. c8=Q {[%clk 0:00:53]} 1-0


[Site "https://www.chess.com"]

[Event "Titled Tuesday Blitz February 14 Late 2023"]
[White "Nunez V, Gustavo Eduardo"]
[Black "Maltsevskaya, Aleksandra"]
[WhiteFideId "4403690"]
[BlackFideId "24174041"]
[WhiteElo "2212"]
[BlackElo "2390"]
[Result "1-0"]
[Round "05"]
[TimeControl "180+2"]
[Date "2023.02.14"]
[WhiteClock "0:00:55"]
[BlackClock "0:00:01"]

1. e4 {[%clk 0:02:51]}  c5 {[%clk 0:03:00]} 2. Nc3 {[%clk 0:02:50]}  e6 {[%clk 0:03:01]} 3. g3 {[%clk 0:02:49]}  Nc6 {[%clk 0:03:01]} 4. Bg2 {[%clk 0:02:49]}  g6 {[%clk 0:03:00]} 5. d3 {[%clk 0:02:46]}  Bg7 {[%clk 0:03:01]} 6. Be3 {[%clk 0:02:46]}  b6 {[%clk 0:02:59]} 7. Qd2 {[%clk 0:02:46]}  Bb7 {[%clk 0:02:57]} 8. h3 {[%clk 0:02:44]}  Nge7 {[%clk 0:02:56]} 9. Nge2 {[%clk 0:02:43]}  d5 {[%clk 0:02:56]} 10. exd5 {[%clk 0:02:43]}  exd5 {[%clk 0:02:57]} 11. Bh6 {[%clk 0:02:43]}  O-O {[%clk 0:02:57]} 12. O-O {[%clk 0:02:41]}  d4 {[%clk 0:02:52]} 13. Bxg7 {[%clk 0:02:41]}  Kxg7 {[%clk 0:02:51]} 14. Ne4 {[%clk 0:02:38]}  Nd5 {[%clk 0:02:51]} 15. Nf4 {[%clk 0:02:38]}  Nxf4 {[%clk 0:02:38]} 16. Qxf4 {[%clk 0:02:39]}  Nb4 {[%clk 0:01:59]} 17. Qd2 {[%clk 0:01:56]}  Bxe4 {[%clk 0:01:28]} 18. Bxe4 {[%clk 0:01:57]}  Rc8 {[%clk 0:01:28]} 19. a3 {[%clk 0:01:55]}  Nd5 {[%clk 0:01:28]} 20. Bxd5 {[%clk 0:01:53]}  Qxd5 {[%clk 0:01:29]} 21. Rae1 {[%clk 0:01:53]}  Rfe8 {[%clk 0:01:30]} 22. Rxe8 {[%clk 0:01:53]}  Rxe8 {[%clk 0:01:30]} 23. Re1 {[%clk 0:01:53]}  Re5 {[%clk 0:01:25]} 24. c4 {[%clk 0:01:43]}  Rxe1+ {[%clk 0:00:30]} 25. Qxe1 {[%clk 0:01:44]}  Qf3 {[%clk 0:00:31]} 26. Qe5+ {[%clk 0:01:40]}  Kh6 {[%clk 0:00:26]} 27. Qe7 {[%clk 0:01:14]}  Kg7 {[%clk 0:00:06]} 28. Qe5+ {[%clk 0:01:13]}  Qf6 {[%clk 0:00:07]} 29. f4 {[%clk 0:00:58]}  Qxe5 {[%clk 0:00:06]} 30. fxe5 {[%clk 0:00:59]}  Kf8 {[%clk 0:00:02]} 31. Kf2 {[%clk 0:00:59]}  Ke7 {[%clk 0:00:02]} 32. Kf3 {[%clk 0:01:00]}  Ke6 {[%clk 0:00:03]} 33. Ke4 {[%clk 0:01:00]}  a5 {[%clk 0:00:02]} 34. b3 {[%clk 0:00:57]}  h5 {[%clk 0:00:01]} 35. h4 {[%clk 0:00:54]}  f5+ {[%clk 0:00:01]} 36. exf6 {[%clk 0:00:55]} 1-0


[Site "https://www.chess.com"]

[Event "Titled Tuesday Blitz February 14 Late 2023"]
[White "Fajdetic, Hrvoje"]
[Black "Aldokhin, Ivan"]
[WhiteFideId "14501945"]
[BlackFideId "24115720"]
[WhiteElo "2151"]
[BlackElo "2413"]
[Result "1-0"]
[Round "05"]
[TimeControl "180+2"]
[Date "2023.02.14"]
[WhiteClock "0:00:11"]
[BlackClock "0:00:30"]

1. d4 {[%clk 0:02:57]}  Nf6 {[%clk 0:02:59]} 2. Bf4 {[%clk 0:02:56]}  c5 {[%clk 0:02:57]} 3. d5 {[%clk 0:02:55]}  d6 {[%clk 0:02:56]} 4. Nc3 {[%clk 0:02:54]}  g6 {[%clk 0:02:55]} 5. e4 {[%clk 0:02:53]}  Bg7 {[%clk 0:02:56]} 6. Be2 {[%clk 0:02:52]}  O-O {[%clk 0:02:56]} 7. Nf3 {[%clk 0:02:52]}  Bg4 {[%clk 0:02:52]} 8. Nd2 {[%clk 0:02:51]}  Bd7 {[%clk 0:02:44]} 9. a4 {[%clk 0:02:47]}  Na6 {[%clk 0:02:44]} 10. O-O {[%clk 0:02:46]}  Nc7 {[%clk 0:02:44]} 11. Nc4 {[%clk 0:02:41]}  b5 {[%clk 0:02:30]} 12. axb5 {[%clk 0:02:40]}  Nxb5 {[%clk 0:02:30]} 13. Nxb5 {[%clk 0:02:31]}  Bxb5 {[%clk 0:02:31]} 14. f3 {[%clk 0:01:59]}  Nh5 {[%clk 0:02:30]} 15. Bc1 {[%clk 0:01:54]}  e6 {[%clk 0:02:18]} 16. dxe6 {[%clk 0:01:46]}  Bxc4 {[%clk 0:02:17]} 17. Bxc4 {[%clk 0:01:44]}  Bd4+ {[%clk 0:02:18]} 18. Kh1 {[%clk 0:01:35]}  Qh4 {[%clk 0:02:09]} 19. Qe1 {[%clk 0:01:09]}  Qf6 {[%clk 0:02:09]} 20. exf7+ {[%clk 0:01:06]}  Kg7 {[%clk 0:01:55]} 21. c3 {[%clk 0:01:00]}  d5 {[%clk 0:01:40]} 22. Bxd5 {[%clk 0:00:51]}  Be5 {[%clk 0:01:40]} 23. f4 {[%clk 0:00:40]}  Bc7 {[%clk 0:01:39]} 24. Bxa8 {[%clk 0:00:33]}  Rxa8 {[%clk 0:01:39]} 25. e5 {[%clk 0:00:28]}  Qxf7 {[%clk 0:01:29]} 26. Qe4 {[%clk 0:00:27]}  Re8 {[%clk 0:01:14]} 27. g4 {[%clk 0:00:25]}  Rxe5 {[%clk 0:01:08]} 28. Qg2 {[%clk 0:00:15]}  Re7 {[%clk 0:00:55]} 29. gxh5 {[%clk 0:00:15]}  Bb6 {[%clk 0:00:54]} 30. hxg6 {[%clk 0:00:14]}  hxg6 {[%clk 0:00:54]} 31. f5 {[%clk 0:00:14]}  c4 {[%clk 0:00:52]} 32. Qxg6+ {[%clk 0:00:10]}  Qxg6 {[%clk 0:00:52]} 33. fxg6 {[%clk 0:00:11]}  Kxg6 {[%clk 0:00:53]} 34. Bf4 {[%clk 0:00:10]}  Re2 {[%clk 0:00:52]} 35. Rab1 {[%clk 0:00:07]}  Kh5 {[%clk 0:00:50]} 36. Bg3 {[%clk 0:00:06]}  Kg5 {[%clk 0:00:37]} 37. Rf4 {[%clk 0:00:06]}  Be3 {[%clk 0:00:32]} 38. Rxc4 {[%clk 0:00:06]}  Bb6 {[%clk 0:00:31]} 39. b4 {[%clk 0:00:05]}  Kg6 {[%clk 0:00:31]} 40. Rc6+ {[%clk 0:00:05]}  Kf5 {[%clk 0:00:31]} 41. Rxb6 {[%clk 0:00:05]}  axb6 {[%clk 0:00:32]} 42. c4 {[%clk 0:00:05]}  Rc2 {[%clk 0:00:31]} 43. Rf1+ {[%clk 0:00:05]}  Ke4 {[%clk 0:00:29]} 44. Rf4+ {[%clk 0:00:06]}  Ke3 {[%clk 0:00:29]} 45. c5 {[%clk 0:00:05]}  bxc5 {[%clk 0:00:23]} 46. bxc5 {[%clk 0:00:06]}  Rxc5 {[%clk 0:00:23]} 47. Bf2+ {[%clk 0:00:06]}  Kxf4 {[%clk 0:00:23]} 48. Bxc5 {[%clk 0:00:07]}  Kg4 {[%clk 0:00:24]} 49. Kg2 {[%clk 0:00:08]}  Kh5 {[%clk 0:00:24]} 50. Bd4 {[%clk 0:00:08]}  Kg6 {[%clk 0:00:25]} 51. Kh3 {[%clk 0:00:08]}  Kh5 {[%clk 0:00:26]} 52. Kg3 {[%clk 0:00:09]}  Kg6 {[%clk 0:00:27]} 53. h4 {[%clk 0:00:09]}  Kh7 {[%clk 0:00:28]} 54. Kg4 {[%clk 0:00:10]}  Kg6 {[%clk 0:00:28]} 55. h5+ {[%clk 0:00:09]}  Kh7 {[%clk 0:00:29]} 56. Kg5 {[%clk 0:00:10]}  Kg8 {[%clk 0:00:30]} 57. Kg6 {[%clk 0:00:10]}  Kf8 {[%clk 0:00:30]} 58. h6 {[%clk 0:00:11]} 1-0


[Site "https://www.chess.com"]